[Event "Late-Titled-Tuesday-Blitz-September-05-2023"]
[Site "Chess.com"]
[Date "2023.09.05"]
[Round "8"]
[White "IlanSchnaider"]
[Black "komogro"]
[Result "1/2-1/2"]
[WhiteElo "2736"]
[BlackElo "2518"]
[TimeControl "180+1"]
[EndTime "15:30:12 PDT"]
[Termination "Game drawn by repetition"]

1. e4 {[%clk 0:02:54.9]} 1... e5 {[%clk 0:02:58]} 2. Nf3 {[%clk 0:02:55.1]} 2...
Nc6 {[%clk 0:02:58.3]} 3. Bc4 {[%clk 0:02:54.2]} 3... Bc5 {[%clk 0:02:57.8]} 4.
c3 {[%clk 0:02:54.4]} 4... Nf6 {[%clk 0:02:56.3]} 5. d3 {[%clk 0:02:54.4]} 5...
a6 {[%clk 0:02:56]} 6. a4 {[%clk 0:02:53.2]} 6... Ba7 {[%clk 0:02:55.8]} 7. O-O
{[%clk 0:02:53.6]} 7... d6 {[%clk 0:02:55.7]} 8. Re1 {[%clk 0:02:53.5]} 8... h6
{[%clk 0:02:54.5]} 9. Be3 {[%clk 0:02:52.8]} 9... O-O {[%clk 0:02:53.3]} 10. h3
{[%clk 0:02:52.4]} 10... Be6 {[%clk 0:02:53.2]} 11. Bb3 {[%clk 0:02:51.8]} 11...
Ne7 {[%clk 0:02:52.8]} 12. Nbd2 {[%clk 0:02:50.8]} 12... Ng6 {[%clk 0:02:51.8]}
13. Bc2 {[%clk 0:02:50.1]} 13... d5 {[%clk 0:02:45]} 14. d4 {[%clk 0:02:50.2]}
14... dxe4 {[%clk 0:02:31.5]} 15. Nxe4 {[%clk 0:02:49.7]} 15... Nxe4 {[%clk
0:02:31.9]} 16. Bxe4 {[%clk 0:02:48.5]} 16... f5 {[%clk 0:02:30.3]} 17. Bxb7
{[%clk 0:02:41.7]} 17... Rb8 {[%clk 0:02:31.2]} 18. Bxa6 {[%clk 0:02:41.1]}
18... e4 {[%clk 0:02:25.7]} 19. Ne5 {[%clk 0:02:38.9]} 19... Nxe5 {[%clk
0:02:24.5]} 20. dxe5 {[%clk 0:02:39.1]} 20... Bxe3 {[%clk 0:02:23.9]} 21. fxe3
{[%clk 0:02:32.4]} 21... Rxb2 {[%clk 0:02:23.6]} 22. Bb5 {[%clk 0:02:15.9]}
22... Qg5 {[%clk 0:02:10.9]} 23. Re2 {[%clk 0:02:15.1]} 23... Rxe2 {[%clk
0:01:49.3]} 24. Qxe2 {[%clk 0:02:14.6]} 24... f4 {[%clk 0:01:44.5]} 25. exf4
{[%clk 0:02:09.2]} 25... Rxf4 {[%clk 0:01:45.4]} 26. Rf1 {[%clk 0:02:05]} 26...
Qxe5 {[%clk 0:01:40.2]} 27. Rxf4 {[%clk 0:02:01.3]} 27... Qxf4 {[%clk
0:01:40.5]} 28. a5 {[%clk 0:01:51.3]} 28... Qc1+ {[%clk 0:01:38.4]} 29. Kh2
{[%clk 0:01:51.4]} 29... Qf4+ {[%clk 0:01:27.4]} 30. Kg1 {[%clk 0:01:20.3]}
30... Qc1+ {[%clk 0:01:25.9]} 31. Kh2 {[%clk 0:01:15.8]} 31... Qf4+ {[%clk
0:01:25]} 32. g3 {[%clk 0:01:16.5]} 32... Qf5 {[%clk 0:01:07.8]} 33. Qf1 {[%clk
0:01:11.6]} 33... Qc5 {[%clk 0:00:59.2]} 34. c4 {[%clk 0:01:09.4]} 34... e3
{[%clk 0:00:56.4]} 35. a6 {[%clk 0:01:06.3]} 35... Qd4 {[%clk 0:00:54.8]} 36.
Qe2 {[%clk 0:01:01.2]} 36... c6 {[%clk 0:00:29.2]} 37. a7 {[%clk 0:00:15.8]}
37... Qxa7 {[%clk 0:00:22.8]} 38. Bxc6 {[%clk 0:00:16.2]} 38... Qd4 {[%clk
0:00:20]} 39. Bb5 {[%clk 0:00:05.8]} 39... Bf5 {[%clk 0:00:19.7]} 40. Kg2 {[%clk
0:00:02.4]} 40... Be4+ {[%clk 0:00:17.7]} 41. Kh2 {[%clk 0:00:01.7]} 41... Bd3
{[%clk 0:00:16.4]} 42. Qg4 {[%clk 0:00:01.4]} 42... Qb2+ {[%clk 0:00:14.3]} 43.
Kg1 {[%clk 0:00:01.2]} 43... Qc1+ {[%clk 0:00:13.2]} 44. Kh2 {[%clk 0:00:01.7]}
44... Qd2+ {[%clk 0:00:13.2]} 45. Kg1 {[%clk 0:00:02.4]} 45... Qe1+ {[%clk
0:00:13.1]} 46. Kh2 {[%clk 0:00:02.3]} 46... Qf2+ {[%clk 0:00:12.7]} 47. Kh1
{[%clk 0:00:03]} 47... Be2 {[%clk 0:00:05.6]} 48. Qe6+ {[%clk 0:00:03.1]} 48...
Kh7 {[%clk 0:00:03.5]} 49. Qe4+ {[%clk 0:00:03.1]} 49... Kg8 {[%clk 0:00:01.3]}
50. Qe8+ {[%clk 0:00:03.2]} 50... Kh7 {[%clk 0:00:02]} 51. Bc6 {[%clk
0:00:03.8]} 51... Bf3+ {[%clk 0:00:01.6]} 52. Bxf3 {[%clk 0:00:04]} 52... Qxf3+
{[%clk 0:00:02.5]} 53. Kg1 {[%clk 0:00:04.8]} 53... Qf2+ {[%clk 0:00:03.4]} 54.
Kh1 {[%clk 0:00:05.4]} 54... e2 {[%clk 0:00:03.7]} 55. Qe4+ {[%clk 0:00:05.7]}
55... Kg8 {[%clk 0:00:04.5]} 56. Qe8+ {[%clk 0:00:05.8]} 56... Kh7 {[%clk
0:00:05]} 57. Qe4+ {[%clk 0:00:06.5]} 57... g6 {[%clk 0:00:04.9]} 58. Qe7+
{[%clk 0:00:06.8]} 58... Kg8 {[%clk 0:00:05.3]} 59. Qe8+ {[%clk 0:00:07.3]}
59... Kg7 {[%clk 0:00:06.2]} 60. Qe7+ {[%clk 0:00:07.9]} 60... Kg8 {[%clk
0:00:06.7]} 61. Qe8+ {[%clk 0:00:08.5]} 61... Kg7 {[%clk 0:00:07.6]} 62. Qe7+
{[%clk 0:00:08.9]} 62... Kg8 {[%clk 0:00:08]} 1/2-1/2

[Event "Late-Titled-Tuesday-Blitz-September-05-2023"]
[Site "Chess.com"]
[Date "2023.09.05"]
[Round "8"]
[White "boldpilot22622"]
[Black "BeautiFullMindChess"]
[Result "1-0"]
[WhiteElo "2513"]
[BlackElo "2357"]
[TimeControl "180+1"]
[EndTime "15:30:15 PDT"]
[Termination "boldpilot22622 won on time"]

1. e4 {[%clk 0:02:58.5]} 1... c5 {[%clk 0:02:58.4]} 2. Nf3 {[%clk 0:02:59]} 2...
d6 {[%clk 0:02:58.7]} 3. d4 {[%clk 0:02:59.5]} 3... cxd4 {[%clk 0:02:59.4]} 4.
Nxd4 {[%clk 0:03:00.3]} 4... Nf6 {[%clk 0:03:00.1]} 5. Nc3 {[%clk 0:03:01]} 5...
Nc6 {[%clk 0:03:00.4]} 6. Be2 {[%clk 0:03:00.2]} 6... g6 {[%clk 0:03:00.2]} 7.
O-O {[%clk 0:03:00.5]} 7... Bg7 {[%clk 0:03:00.8]} 8. Be3 {[%clk 0:03:01]} 8...
O-O {[%clk 0:03:00.9]} 9. h3 {[%clk 0:02:59.3]} 9... Bd7 {[%clk 0:03:00.3]} 10.
Qd2 {[%clk 0:02:59.9]} 10... Nxd4 {[%clk 0:03:00.2]} 11. Bxd4 {[%clk 0:02:59.2]}
11... Bc6 {[%clk 0:03:01.1]} 12. f3 {[%clk 0:02:57.3]} 12... e5 {[%clk
0:02:56.1]} 13. Be3 {[%clk 0:02:56.6]} 13... d5 {[%clk 0:02:56.9]} 14. exd5
{[%clk 0:02:55.4]} 14... Nxd5 {[%clk 0:02:57.8]} 15. Nxd5 {[%clk 0:02:55.3]}
15... Qxd5 {[%clk 0:02:55.1]} 16. Qxd5 {[%clk 0:02:54.4]} 16... Bxd5 {[%clk
0:02:56]} 17. Rfd1 {[%clk 0:02:53.8]} 17... Be6 {[%clk 0:02:49.6]} 18. c3 {[%clk
0:02:51.1]} 18... Rfd8 {[%clk 0:02:44.7]} 19. Kf2 {[%clk 0:02:43.8]} 19... Rxd1
{[%clk 0:02:41.5]} 20. Rxd1 {[%clk 0:02:43.1]} 20... Bxa2 {[%clk 0:02:41.1]} 21.
Rd7 {[%clk 0:02:38.7]} 21... b6 {[%clk 0:02:39.8]} 22. Bd3 {[%clk 0:02:23.5]}
22... Be6 {[%clk 0:02:38.3]} 23. Rc7 {[%clk 0:02:22.2]} 23... Bf8 {[%clk
0:02:26.5]} 24. Be4 {[%clk 0:02:21.1]} 24... Rd8 {[%clk 0:02:15.9]} 25. Bg5
{[%clk 0:02:10.7]} 25... Rd7 {[%clk 0:02:09]} 26. Rc8 {[%clk 0:01:57.3]} 26...
f5 {[%clk 0:01:39]} 27. Bc6 {[%clk 0:01:50.1]} 27... Rd2+ {[%clk 0:01:25.9]} 28.
Bxd2 {[%clk 0:01:45.3]} 28... Bxc8 {[%clk 0:01:26.8]} 29. g4 {[%clk 0:01:42.5]}
29... Kf7 {[%clk 0:01:26.1]} 30. b4 {[%clk 0:01:35.6]} 30... a5 {[%clk
0:01:20.3]} 31. bxa5 {[%clk 0:01:34.9]} 31... bxa5 {[%clk 0:01:21.2]} 32. c4
{[%clk 0:01:31.8]} 32... Bc5+ {[%clk 0:01:20.7]} 33. Ke2 {[%clk 0:01:31]} 33...
Be6 {[%clk 0:00:58.5]} 34. Kd3 {[%clk 0:01:23.7]} 34... Bb6 {[%clk 0:00:51.8]}
35. Bg5 {[%clk 0:01:03.8]} 35... h5 {[%clk 0:00:38.7]} 36. gxh5 {[%clk
0:01:00.2]} 36... gxh5 {[%clk 0:00:39.2]} 37. Bd2 {[%clk 0:01:00.4]} 37... f4
{[%clk 0:00:30.1]} 38. c5 {[%clk 0:00:54.1]} 38... Bxc5 {[%clk 0:00:20.1]} 39.
Bxa5 {[%clk 0:00:54.6]} 39... Bxh3 {[%clk 0:00:20.7]} 40. Ke4 {[%clk 0:00:50.3]}
40... Kf6 {[%clk 0:00:19.4]} 41. Bd8+ {[%clk 0:00:46.8]} 41... Ke6 {[%clk
0:00:19.9]} 42. Bd5+ {[%clk 0:00:44.9]} 42... Kd6 {[%clk 0:00:19.5]} 43. Bf7
{[%clk 0:00:41.1]} 43... Bd4 {[%clk 0:00:11.4]} 44. Bxh5 {[%clk 0:00:38.9]}
44... Bd7 {[%clk 0:00:12.3]} 45. Ba5 {[%clk 0:00:35.1]} 45... Bc6+ {[%clk
0:00:12.7]} 46. Kf5 {[%clk 0:00:34.1]} 46... Kc5 {[%clk 0:00:11.5]} 47. Bd2
{[%clk 0:00:32.8]} 47... Kc4 {[%clk 0:00:10.2]} 48. Bxf4 {[%clk 0:00:32]} 48...
exf4 {[%clk 0:00:09.5]} 49. Kxf4 {[%clk 0:00:32.9]} 49... Bc3 {[%clk 0:00:09.5]}
50. Kg5 {[%clk 0:00:31.2]} 50... Kd4 {[%clk 0:00:08]} 51. f4 {[%clk 0:00:31.1]}
51... Kc5 {[%clk 0:00:07]} 52. f5 {[%clk 0:00:31]} 52... Kd6 {[%clk 0:00:07.9]}
53. Kg6 {[%clk 0:00:28.8]} 53... Ke7 {[%clk 0:00:07.8]} 54. Be2 {[%clk
0:00:28.2]} 54... Bf6 {[%clk 0:00:08.7]} 55. Bd3 {[%clk 0:00:28.2]} 55... Be8+
{[%clk 0:00:08.9]} 56. Kh6 {[%clk 0:00:28.3]} 56... Kd6 {[%clk 0:00:09.3]} 57.
Bb1 {[%clk 0:00:25.5]} 57... Bf7 {[%clk 0:00:09.1]} 58. Bc2 {[%clk 0:00:25.6]}
58... Ke5 {[%clk 0:00:09.5]} 59. Bb1 {[%clk 0:00:26]} 59... Kf4 {[%clk
0:00:08.9]} 60. Bc2 {[%clk 0:00:26.1]} 60... Ke5 {[%clk 0:00:08.6]} 61. Bb1
{[%clk 0:00:26.3]} 61... Kd6 {[%clk 0:00:09.5]} 62. Bc2 {[%clk 0:00:26.6]} 62...
Ke7 {[%clk 0:00:10.4]} 63. Bb1 {[%clk 0:00:26.9]} 63... Bc3 {[%clk 0:00:06.6]}
64. Bc2 {[%clk 0:00:26.9]} 64... Kf6 {[%clk 0:00:06.4]} 65. Bb1 {[%clk
0:00:26.7]} 65... Bd2+ {[%clk 0:00:06]} 66. Kh7 {[%clk 0:00:26.2]} 66... Bd5
{[%clk 0:00:04.4]} 67. Bc2 {[%clk 0:00:26]} 67... Bg5 {[%clk 0:00:03.9]} 68. Bb1
{[%clk 0:00:25.8]} 1-0

[Event "Late-Titled-Tuesday-Blitz-September-05-2023"]
[Site "Chess.com"]
[Date "2023.09.05"]
[Round "8"]
[White "2k28Lakers"]
[Black "FaustinoOro"]
[Result "0-1"]
[WhiteElo "2533"]
[BlackElo "2844"]
[TimeControl "180+1"]
[EndTime "15:30:22 PDT"]
[Termination "FaustinoOro won by resignation"]

1. e4 {[%clk 0:03:00.9]} 1... e5 {[%clk 0:02:54.2]} 2. Nf3 {[%clk 0:03:00.8]}
2... Nc6 {[%clk 0:02:54.2]} 3. Bc4 {[%clk 0:03:01.3]} 3... Bc5 {[%clk 0:02:54]}
4. c3 {[%clk 0:03:00.1]} 4... Nf6 {[%clk 0:02:54]} 5. d3 {[%clk 0:03:00.5]} 5...
d6 {[%clk 0:02:54]} 6. O-O {[%clk 0:03:00.6]} 6... h6 {[%clk 0:02:54.7]} 7. a4
{[%clk 0:02:59.7]} 7... a6 {[%clk 0:02:54.7]} 8. Nbd2 {[%clk 0:02:58.6]} 8...
O-O {[%clk 0:02:54.4]} 9. h3 {[%clk 0:02:56.9]} 9... Ba7 {[%clk 0:02:54.4]} 10.
Re1 {[%clk 0:02:57.1]} 10... Re8 {[%clk 0:02:54]} 11. b4 {[%clk 0:02:55.7]}
11... d5 {[%clk 0:02:39.4]} 12. exd5 {[%clk 0:02:54.1]} 12... Nxd5 {[%clk
0:02:40.3]} 13. Qb3 {[%clk 0:02:48.1]} 13... Be6 {[%clk 0:02:19.4]} 14. a5
{[%clk 0:02:39.1]} 14... Qd6 {[%clk 0:02:05]} 15. Ne4 {[%clk 0:02:37.1]} 15...
Qd7 {[%clk 0:02:04.4]} 16. Nc5 {[%clk 0:02:33.4]} 16... Bxc5 {[%clk 0:02:04]}
17. bxc5 {[%clk 0:02:34.3]} 17... Nf6 {[%clk 0:01:46.4]} 18. Bxe6 {[%clk
0:01:57.9]} 18... Rxe6 {[%clk 0:01:44.8]} 19. Qxb7 {[%clk 0:01:48.6]} 19... Rb8
{[%clk 0:01:34.1]} 20. Qxa6 {[%clk 0:01:48.5]} 20... Nd4 {[%clk 0:01:31.5]} 21.
Qc4 {[%clk 0:01:28.4]} 21... Nxf3+ {[%clk 0:01:25.9]} 22. gxf3 {[%clk
0:01:29.3]} 22... Nd5 {[%clk 0:01:25.9]} 23. Kh2 {[%clk 0:01:26.4]} 23... c6
{[%clk 0:00:56.6]} 24. a6 {[%clk 0:01:21.5]} 24... Rf6 {[%clk 0:00:56.5]} 25.
Qg4 {[%clk 0:00:55.7]} 25... Qc7 {[%clk 0:00:54.4]} 26. Qg3 {[%clk 0:00:47]}
26... Rf5 {[%clk 0:00:31.4]} 27. Bxh6 {[%clk 0:00:42.6]} 27... g6 {[%clk
0:00:30.8]} 28. d4 {[%clk 0:00:39.4]} 28... Rh5 {[%clk 0:00:15.7]} 29. Rxe5
{[%clk 0:00:35.2]} 29... Rxh6 {[%clk 0:00:13]} 30. Re8+ {[%clk 0:00:34.4]} 30...
Rxe8 {[%clk 0:00:12.8]} 31. a7 {[%clk 0:00:28.6]} 31... Qxg3+ {[%clk 0:00:11.9]}
32. fxg3 {[%clk 0:00:29.5]} 32... Ra8 {[%clk 0:00:11.9]} 33. g4 {[%clk
0:00:30.1]} 33... f6 {[%clk 0:00:10.6]} 34. Ra6 {[%clk 0:00:27.7]} 34... Rh7
{[%clk 0:00:09.9]} 35. Rxc6 {[%clk 0:00:27.5]} 35... Rhxa7 {[%clk 0:00:10.6]}
36. c4 {[%clk 0:00:27.8]} 36... Ne3 {[%clk 0:00:10.9]} 37. Rxf6 {[%clk
0:00:25.8]} 37... Kg7 {[%clk 0:00:11.5]} 38. Re6 {[%clk 0:00:26.2]} 38... Nxc4
{[%clk 0:00:11.5]} 39. d5 {[%clk 0:00:25.7]} 39... Rf7 {[%clk 0:00:10.9]} 40. d6
{[%clk 0:00:21]} 40... Rc8 {[%clk 0:00:08.7]} 41. Re4 {[%clk 0:00:12.6]} 41...
Rxc5 {[%clk 0:00:08]} 42. Rd4 {[%clk 0:00:13.5]} 42... Nb6 {[%clk 0:00:07.8]}
43. Kg3 {[%clk 0:00:13.8]} 43... Rd5 {[%clk 0:00:07.6]} 44. Rb4 {[%clk
0:00:13.8]} 44... Rxd6 {[%clk 0:00:08]} 45. h4 {[%clk 0:00:14.7]} 45... Rdf6
{[%clk 0:00:08.3]} 46. Rb3 {[%clk 0:00:14.7]} 46... Nd5 {[%clk 0:00:08.3]} 47.
h5 {[%clk 0:00:14.5]} 47... gxh5 {[%clk 0:00:08.3]} 48. g5 {[%clk 0:00:15.4]}
48... Rf5 {[%clk 0:00:08.1]} 49. Kh4 {[%clk 0:00:14.6]} 49... Nf4 {[%clk
0:00:08.1]} 50. Rb6 {[%clk 0:00:13.7]} 50... Kh7 {[%clk 0:00:03.8]} 51. Rh6+
{[%clk 0:00:13.4]} 51... Kg7 {[%clk 0:00:03.9]} 52. Rb6 {[%clk 0:00:13.7]} 52...
Re7 {[%clk 0:00:04.5]} 53. g6 {[%clk 0:00:11.8]} 53... Nxg6+ {[%clk 0:00:04.3]}
54. Kg3 {[%clk 0:00:10.6]} 54... h4+ {[%clk 0:00:04.7]} 55. Kg2 {[%clk
0:00:10.5]} 55... Rg5+ {[%clk 0:00:03.9]} 56. Kh2 {[%clk 0:00:10.8]} 56... Re2+
{[%clk 0:00:03.8]} 57. Kh1 {[%clk 0:00:11.5]} 57... Nf4 {[%clk 0:00:03.8]} 58.
Rg6+ {[%clk 0:00:10.6]} 58... Kf7 {[%clk 0:00:03.9]} 59. Rf6+ {[%clk 0:00:10.9]}
59... Ke7 {[%clk 0:00:04.2]} 60. Rf7+ {[%clk 0:00:10.8]} 60... Kd6 {[%clk
0:00:04.2]} 61. Rf6+ {[%clk 0:00:11.4]} 61... Ke5 {[%clk 0:00:02.1]} 62. Rf5+
{[%clk 0:00:11.9]} 62... Kd4 {[%clk 0:00:02.9]} 63. Rxg5 {[%clk 0:00:12.3]}
63... Ke3 {[%clk 0:00:03.2]} 64. Re5+ {[%clk 0:00:12.5]} 64... Kxf3 {[%clk
0:00:03.7]} 65. Re3+ {[%clk 0:00:12.2]} 65... Kxe3 {[%clk 0:00:03]} 66. Kg1
{[%clk 0:00:11.8]} 66... Kf3 {[%clk 0:00:03.5]} 67. Kh1 {[%clk 0:00:12.4]} 67...
Kg3 {[%clk 0:00:04.1]} 0-1

[Event "Late-Titled-Tuesday-Blitz-September-05-2023"]
[Site "Chess.com"]
[Date "2023.09.05"]
[Round "8"]
[White "nihalsarin"]
[Black "K_A_S_T_O_R"]
[Result "1-0"]
[WhiteElo "3147"]
[BlackElo "2958"]
[TimeControl "180+1"]
[EndTime "15:30:25 PDT"]
[Termination "nihalsarin won by resignation"]

1. Nf3 {[%clk 0:03:00.9]} 1... c5 {[%clk 0:02:59.8]} 2. b3 {[%clk 0:03:01.8]}
2... d5 {[%clk 0:02:59.2]} 3. e3 {[%clk 0:03:01.4]} 3... a6 {[%clk 0:02:58.9]}
4. Bb2 {[%clk 0:03:01.8]} 4... Nc6 {[%clk 0:02:57.1]} 5. d4 {[%clk 0:03:02.5]}
5... Bg4 {[%clk 0:02:55.8]} 6. Be2 {[%clk 0:03:02]} 6... Nf6 {[%clk 0:02:54.8]}
7. O-O {[%clk 0:03:02.3]} 7... e6 {[%clk 0:02:55]} 8. Nbd2 {[%clk 0:03:03]} 8...
Rc8 {[%clk 0:02:46.1]} 9. h3 {[%clk 0:03:03.4]} 9... Bh5 {[%clk 0:02:45.8]} 10.
dxc5 {[%clk 0:03:03.7]} 10... Bxc5 {[%clk 0:02:44.9]} 11. a3 {[%clk 0:03:04.5]}
11... O-O {[%clk 0:02:43.8]} 12. b4 {[%clk 0:03:05.3]} 12... Ba7 {[%clk
0:02:39.8]} 13. c4 {[%clk 0:03:05.9]} 13... Qe7 {[%clk 0:02:39]} 14. c5 {[%clk
0:03:04.3]} 14... Rfd8 {[%clk 0:02:36.1]} 15. Ne5 {[%clk 0:03:04.5]} 15... Bxe2
{[%clk 0:02:35.1]} 16. Qxe2 {[%clk 0:03:05.4]} 16... Bb8 {[%clk 0:02:35.1]} 17.
Ndf3 {[%clk 0:03:05.1]} 17... Nxe5 {[%clk 0:02:31.9]} 18. Bxe5 {[%clk
0:03:05.2]} 18... Bxe5 {[%clk 0:02:28.9]} 19. Nxe5 {[%clk 0:03:06.1]} 19... Ne4
{[%clk 0:02:24.8]} 20. Rac1 {[%clk 0:03:06.1]} 20... f6 {[%clk 0:02:22.6]} 21.
Nf3 {[%clk 0:03:05.8]} 21... e5 {[%clk 0:02:21.3]} 22. Rfd1 {[%clk 0:03:06.5]}
22... Qe6 {[%clk 0:02:21.2]} 23. Qb2 {[%clk 0:03:06.5]} 23... h6 {[%clk
0:02:19.4]} 24. a4 {[%clk 0:03:06.5]} 24... a5 {[%clk 0:02:12.8]} 25. bxa5
{[%clk 0:03:05.5]} 25... Nxc5 {[%clk 0:02:12.2]} 26. Qb5 {[%clk 0:03:06]} 26...
Qc6 {[%clk 0:01:59.1]} 27. Rd2 {[%clk 0:03:06.3]} 27... Qxb5 {[%clk 0:01:56.1]}
28. axb5 {[%clk 0:03:07.2]} 28... Nb3 {[%clk 0:01:56.2]} 29. Rxc8 {[%clk
0:03:07.3]} 29... Rxc8 {[%clk 0:01:56.8]} 30. Rxd5 {[%clk 0:03:08]} 30... Nxa5
{[%clk 0:01:57.4]} 31. Rd7 {[%clk 0:03:08.7]} 31... Rc5 {[%clk 0:01:55.2]} 32.
Nh4 {[%clk 0:03:09]} 32... e4 {[%clk 0:01:55.2]} 33. g4 {[%clk 0:03:09.1]} 33...
h5 {[%clk 0:01:52.3]} 34. Nf5 {[%clk 0:03:08.8]} 34... hxg4 {[%clk 0:01:52.7]}
35. hxg4 {[%clk 0:03:09.4]} 35... Rxb5 {[%clk 0:01:51]} 36. Rxg7+ {[%clk
0:03:09.4]} 36... Kf8 {[%clk 0:01:51.5]} 37. Rd7 {[%clk 0:03:08.3]} 37... Nc6
{[%clk 0:01:49.6]} 38. Kg2 {[%clk 0:03:06.2]} 38... Ne5 {[%clk 0:01:45]} 39. Rc7
{[%clk 0:03:06.5]} 39... Rb1 {[%clk 0:01:39.5]} 40. Nd6 {[%clk 0:03:02.7]} 40...
Nxg4 {[%clk 0:01:36.9]} 41. Nxe4 {[%clk 0:03:02.8]} 41... f5 {[%clk 0:01:35.8]}
42. Nd6 {[%clk 0:03:02.6]} 42... Rb2 {[%clk 0:01:35.9]} 43. Kg3 {[%clk
0:02:44.8]} 43... Nxf2 {[%clk 0:01:35.6]} 44. Nxf5 {[%clk 0:02:39.1]} 44... Ne4+
{[%clk 0:01:29.6]} 45. Kf4 {[%clk 0:02:39.2]} 45... Rb4 {[%clk 0:01:22.6]} 46.
Ke5 {[%clk 0:02:36.2]} 46... Ng5 {[%clk 0:01:15.1]} 47. Nd4 {[%clk 0:02:36]}
47... Rb6 {[%clk 0:01:05.2]} 48. Kf5 {[%clk 0:02:34.5]} 48... Nf7 {[%clk
0:00:59.7]} 49. Ne6+ {[%clk 0:01:48.9]} 49... Kg8 {[%clk 0:00:59.5]} 50. Nf4
{[%clk 0:01:26.9]} 50... Nd6+ {[%clk 0:00:57.6]} 51. Ke5 {[%clk 0:01:26.5]}
51... Nf7+ {[%clk 0:00:57.6]} 52. Ke4 {[%clk 0:01:16.4]} 52... Rb4+ {[%clk
0:00:56.6]} 53. Kf5 {[%clk 0:01:16.6]} 53... Rb5+ {[%clk 0:00:56.7]} 54. Kf6
{[%clk 0:01:07.4]} 54... Rb6+ {[%clk 0:00:56.8]} 55. Ke7 {[%clk 0:01:08.2]}
55... Nd6 {[%clk 0:00:42.2]} 56. Rc5 {[%clk 0:00:58.3]} 56... Kh7 {[%clk
0:00:32.2]} 57. Rh5+ {[%clk 0:00:48.2]} 57... Kg7 {[%clk 0:00:32.1]} 58. Ne6+
{[%clk 0:00:46.1]} 58... Kg6 {[%clk 0:00:28.9]} 59. Nf4+ {[%clk 0:00:33.2]}
59... Kg7 {[%clk 0:00:29.3]} 60. Rg5+ {[%clk 0:00:33.9]} 60... Kh7 {[%clk
0:00:29.7]} 61. Nd5 {[%clk 0:00:33.8]} 61... Rc6 {[%clk 0:00:25.5]} 62. Nf6+
{[%clk 0:00:30.4]} 62... Kh6 {[%clk 0:00:25.7]} 63. Rd5 {[%clk 0:00:30.8]} 63...
Nc8+ {[%clk 0:00:22.7]} 64. Kf7 {[%clk 0:00:31.3]} 64... Rc7+ {[%clk 0:00:23.1]}
65. Ke6 {[%clk 0:00:29.2]} 65... Rc6+ {[%clk 0:00:21.9]} 66. Ke5 {[%clk
0:00:24.7]} 66... Kg6 {[%clk 0:00:19.4]} 67. Ne4 {[%clk 0:00:17]} 67... Nb6
{[%clk 0:00:19.5]} 68. Rd8 {[%clk 0:00:16.4]} 68... Nc4+ {[%clk 0:00:18.8]} 69.
Kd4 {[%clk 0:00:15.9]} 69... Nb6 {[%clk 0:00:18.3]} 70. Rb8 {[%clk 0:00:15.6]}
70... Rc7 {[%clk 0:00:17.4]} 71. Nc3 {[%clk 0:00:13.1]} 71... Nc8 {[%clk
0:00:16.9]} 72. Nd5 {[%clk 0:00:12.7]} 72... Rc1 {[%clk 0:00:17]} 73. Rxc8
{[%clk 0:00:13.1]} 73... Rd1+ {[%clk 0:00:17.5]} 74. Ke5 {[%clk 0:00:13.5]}
74... Rd3 {[%clk 0:00:16.6]} 75. e4 {[%clk 0:00:13.9]} 1-0